[Event "FIDE WYCC Girls U14 2023"]
[Site "Montesilvano"]
[Date "2023.11.23"]
[Round "10.19"]
[White "Skramstad, Oda Kofoed"]
[Black "Sezdbekova, Aizhan"]
[Result "1-0"]
[ECO "A55"]
[WhiteElo "1801"]
[BlackElo "1594"]
[Annotator "NA RC"]
[PlyCount "131"]
[EventDate "2023.11.13"]
[EventType "swiss"]
[EventCountry "ITA"]
[SourceTitle "playchess.com"]
[Source "ChessBase"]
[SourceQuality "1"]
[TimeControl "40/5400+30:1800+30"]

1. d4 {[%emt 0:01:53]} d6 {[%emt 0:00:35]} 2. Nf3 {[%emt 0:00:38]} Nf6 {[%emt 0:08:01]} 3. c4 {[%emt 0:02:37]} Nbd7 {[%emt 0:06:58]} 4. Nc3 {[%emt 0:13:45]} e5 {[%emt 0:14:05]} 5. e4 {[%emt 0:02:33]} Be7 {[%emt 0:06:37]} 6. Be2 {[%emt 0:04:05]} O-O {[%emt 0:04:58]} 7. O-O {[%emt 0:01:58]} h6 {[%emt 0:05:06]} 8. a3 {[%emt 0:04:22]} Re8 {[%emt 0:09:20]} 9. Qc2 {[%emt 0:03:17]} Bf8 {[%emt 0:10:23]} 10. Rd1 {[%emt 0:04:03]} exd4 {[%emt 0:00:44]} 11. Nxd4 {[%emt 0:00:20]} Nc5 {[%emt 0:00:16]} 12. f3 {[%emt 0:01:23]} g6 {[%emt 0:00:48]} 13. Be3 {[%emt 0:02:49]} Bg7 {[%emt 0:08:52]} 14. Bf2 {[%emt 0:05:38]} Nh5 {[%emt 0:03:36]} 15. Bf1 {[%emt 0:08:01]} Qg5 {[%emt 0:02:20]} 16. Nce2 {[%emt 0:03:44]} Ne6 {[%emt 0:01:36]} 17. Qd2 {[%emt 0:03:45]} Qe7 {[%emt 0:01:36]} 18. Rac1 {[%emt 0:01:24]} Kh7 {[%emt 0:05:07]} 19. b4 {[%emt 0:02:37]} Bd7 {[%emt 0:01:50]} 20. Nxe6 {[%emt 0:08:41]} Qxe6 {[%emt 0:02:18]} 21. Nc3 {[%emt 0:00:46]} Be5 {[%emt 0:01:19]} 22. Be3 {[%emt 0:01:54]} g5 {[%emt 0:00:27]} 23. c5 {[%emt 0:02:14]} Rad8 {[%emt 0:01:49]} 24. cxd6 {[%emt 0:01:27]} Bc6 {[%emt 0:01:08]} 25. Qc2 {[%emt 0:04:22]} cxd6 {[%emt 0:01:57]} 26. b5 {[%emt 0:01:02]} Bd7 {[%emt 0:00:05]} 27. Nd5 {[%emt 0:01:03]} Rc8 {[%emt 0:00:39]} 28. Qd2 {[%emt 0:00:10]} Qg6 {[%emt 0:00:49]} 29. Rxc8 {[%emt 0:01:09]} Bxc8 {[%emt 0:00:08]} 30. Rc1 {[%emt 0:00:42]} Nf6 {[%emt 0:01:22]} 31. Bd3 {[%emt 0:03:51]} Nxd5 {[%emt 0:00:34]} 32. exd5 {[%emt 0:00:16]} Bf5 {[%emt 0:00:04]} 33. Bf1 {[%emt 0:01:03]} Re7 {[%emt 0:00:57]} 34. g4 {[%emt 0:02:03]} Bd7 {[%emt 0:00:04]} 35. Bd3 {[%emt 0:00:17]} f5 {[%emt 0:00:06]} 36. Rc7 {[%emt 0:00:31]} Qf7 {[%emt 0:00:43]} 37. Qc2 {[%emt 0:01:18]} Kh8 {[%emt 0:00:56]} 38. gxf5 {[%emt 0:03:56]} Bg7 {[%emt 0:00:42]} 39. Bf2 {[%emt 0:00:56]} Qf6 {[%emt 0:00:24]} 40. Rxb7 {[%emt 0:00:00]} Be8 {[%emt 0:00:00]} 41. Rxe7 {[%emt 0:04:30]} Qxe7 {[%emt 0:00:46]} 42. Qe2 {[%emt 0:00:09]} Be5 {[%emt 0:02:29]} 43. Qc2 {[%emt 0:06:00]} Qb7 {[%emt 0:03:46]} 44. Qc4 {[%emt 0:01:11]} Kg8 {[%emt 0:01:20]} 45. Kg2 {[%emt 0:01:02]} Kf8 {[%emt 0:01:47]} 46. a4 {[%emt 0:01:07]} h5 {[%emt 0:07:16]} 47. Bd4 {[%emt 0:09:35]} Qe7 {[%emt 0:01:28]} 48. Bf2 {[%emt 0:02:10]} h4 {[%emt 0:03:55]} 49. h3 {[%emt 0:00:54]} Qb7 {[%emt 0:03:28]} 50. a5 {[%emt 0:01:46]} Bd7 {[%emt 0:04:25]} 51. b6 {[%emt 0:01:59]} axb6 {[%emt 0:00:13]} 52. axb6 {[%emt 0:05:31]} Kf7 {[%emt 0:03:02]} 53. Qa6 {[%emt 0:00:32]} Bc8 {[%emt 0:00:17]} 54. Qc4 {[%emt 0:01:30]} Kf8 {[%emt 0:02:44]} 55. Qg4 {[%emt 0:00:50]} Bf6 {[%emt 0:00:59]} 56. Qh5 {[%emt 0:00:32]} Qg7 {[%emt 0:00:40]} 57. Bb5 {[%emt 0:00:28]} Qe7 {[%emt 0:00:08]} 58. Qg4 {[%emt 0:01:03]} Bb7 {[%emt 0:00:23]} 59. Qc4 {[%emt 0:00:21]} Qf7 {[%emt 0:00:42]} 60. Bc6 {[%emt 0:00:26]} Bd8 {[%emt 0:00:34]} 61. Bxb7 {[%emt 0:00:36]} Qxb7 {[%emt 0:00:04]} 62. Qc6 {[%emt 0:00:05]} Qb8 {[%emt 0:00:06]} 63. b7 {[%emt 0:00:22]} Ke7 {[%emt 0:00:18]} 64. Qc8 {[%emt 0:00:28]} Bc7 {[%emt 0:00:13]} 65. Bb6 {[%emt 0:00:59]} Kf6 {[%emt 0:00:24]} 66. Qxc7 {[%emt 0:00:09]} 1-0

[Event "FIDE WYCC Girls U14 2023"]
[Site "Montesilvano"]
[Date "2023.11.23"]
[Round "10.20"]
[White "Sun, Wanyao Sarah"]
[Black "Li Chen, Helena Joana"]
[Result "1/2-1/2"]
[ECO "B22"]
[WhiteElo "1593"]
[BlackElo "1799"]
[Annotator "NA RC"]
[PlyCount "115"]
[EventDate "2023.11.13"]
[EventType "swiss"]
[EventCountry "ITA"]
[SourceTitle "playchess.com"]
[Source "ChessBase"]
[SourceQuality "1"]
[TimeControl "40/5400+30:1800+30"]

1. e4 {[%emt 0:00:03]} c5 {[%emt 0:04:21]} 2. c3 {[%emt 0:00:13]} Nf6 {[%emt 0:00:46]} 3. e5 {[%emt 0:00:13]} Nd5 {[%emt 0:00:16]} 4. d4 {[%emt 0:01:20]} cxd4 {[%emt 0:00:06]} 5. cxd4 {[%emt 0:00:05]} e6 {[%emt 0:01:00]} 6. Nf3 {[%emt 0:02:01]} b6 {[%emt 0:00:07]} 7. Nc3 {[%emt 0:01:15]} Nxc3 {[%emt 0:00:31]} 8. bxc3 {[%emt 0:00:07]} Qc7 {[%emt 0:00:03]} 9. Bd2 {[%emt 0:01:45]} Bb7 {[%emt 0:00:31]} 10. Bd3 {[%emt 0:00:49]} d6 {[%emt 0:00:09]} 11. O-O {[%emt 0:01:48]} Nd7 {[%emt 0:01:46]} 12. exd6 {[%emt 0:03:49]} Bxd6 {[%emt 0:00:11]} 13. Re1 {[%emt 0:00:31]} O-O {[%emt 0:02:32]} 14. h3 {[%emt 0:10:30]} Rac8 {[%emt 0:02:29]} 15. Ng5 {[%emt 0:02:58]} Nf6 {[%emt 0:02:17]} 16. Ne4 {[%emt 0:03:51]} Nxe4 {[%emt 0:02:40]} 17. Bxe4 {[%emt 0:00:17]} Bxe4 {[%emt 0:00:12]} 18. Rxe4 {[%emt 0:00:08]} Qc6 {[%emt 0:03:41]} 19. Qe2 {[%emt 0:02:20]} Rfd8 {[%emt 0:03:50]} 20. Rh4 {[%emt 0:00:28]} Be7 {[%emt 0:00:43]} 21. Rg4 {[%emt 0:00:44]} Bf6 {[%emt 0:06:57]} 22. Bh6 {[%emt 0:04:13]} Kh8 {[%emt 0:06:12]} 23. Bd2 {[%emt 0:01:04]} Qc4 {[%emt 0:01:05]} 24. Qf3 {[%emt 0:01:14]} Rd5 {[%emt 0:04:38]} 25. Rf4 {[%emt 0:01:45]} Kg8 {[%emt 0:05:20]} 26. Rxf6 {[%emt 0:05:51]} gxf6 {[%emt 0:00:08]} 27. Bh6 {[%emt 0:00:12]} Qxc3 {[%emt 0:01:08]} 28. Rc1 {[%emt 0:02:07]} Qxc1+ {[%emt 0:01:03]} 29. Bxc1 {[%emt 0:00:05]} Rxc1+ {[%emt 0:00:04]} 30. Kh2 {[%emt 0:00:05]} Kg7 {[%emt 0:01:23]} 31. h4 {[%emt 0:01:28]} Rc8 {[%emt 0:02:34]} 32. Qg3+ {[%emt 0:00:39]} Kf8 {[%emt 0:00:08]} 33. Qa3+ {[%emt 0:00:15]} Kg7 {[%emt 0:01:24]} 34. Qg3+ {[%emt 0:00:11]} Kh8 {[%emt 0:01:16]} 35. Qf3 {[%emt 0:02:29]} Rf5 {[%emt 0:06:23]} 36. Qb7 {[%emt 0:00:22]} Rg8 {[%emt 0:00:09]} 37. f3 {[%emt 0:01:31]} Kg7 {[%emt 0:01:06]} 38. Qxa7 {[%emt 0:02:15]} Ra5 {[%emt 0:00:08]} 39. Qxb6 {[%emt 0:01:52]} Rxa2 {[%emt 0:00:07]} 40. Qc7 {[%emt 0:00:00]} h6 {[%emt 0:00:00]} 41. Kh1 {[%emt 0:04:34]} Rd2 {[%emt 0:03:25]} 42. Qf4 {[%emt 0:02:38]} Rd1+ {[%emt 0:00:14]} 43. Kh2 {[%emt 0:00:11]} Rd8 {[%emt 0:00:24]} 44. Qg4+ {[%emt 0:01:13]} Kh7 {[%emt 0:00:13]} 45. Qh5 {[%emt 0:01:23]} Rd7 {[%emt 0:01:45]} 46. g4 {[%emt 0:00:29]} Kg7 {[%emt 0:00:16]} 47. g5 {[%emt 0:01:03]} hxg5 {[%emt 0:00:10]} 48. hxg5 {[%emt 0:00:16]} f5 {[%emt 0:00:05]} 49. Qh6+ {[%emt 0:01:55]} Kg8 {[%emt 0:00:05]} 50. g6 {[%emt 0:02:25]} fxg6 {[%emt 0:02:11]} 51. Qxg6+ {[%emt 0:00:08]} Kf8 {[%emt 0:00:11]} 52. Qxe6 {[%emt 0:02:42]} R1xd4 {[%emt 0:00:26]} 53. Qxf5+ {[%emt 0:00:35]} Kg7 {[%emt 0:00:28]} 54. Qg5+ {[%emt 0:01:15]} Kf7 {[%emt 0:00:19]} 55. Qf5+ {[%emt 0:00:16]} Kg7 {[%emt 0:00:04]} 56. Qg5+ {[%emt 0:00:06]} Kf7 {[%emt 0:00:05]} 57. Qf5+ {[%emt 0:00:16]} Kg7 {[%emt 0:00:07]} 58. Qg5+ {[%emt 0:00:11]} 1/2-1/2

[Event "FIDE WYCC Girls U14 2023"]
[Site "Montesilvano"]
[Date "2023.11.23"]
[Round "10.21"]
[White "Montano Vicente, Guadalupe"]
[Black "Kazhiakhmetova, Yerkenaz"]
[Result "1-0"]
[ECO "D10"]
[WhiteElo "1794"]
[BlackElo "1218"]
[Annotator "NA RC"]
[PlyCount "69"]
[EventDate "2023.11.13"]
[EventType "swiss"]
[EventCountry "ITA"]
[SourceTitle "playchess.com"]
[Source "ChessBase"]
[SourceQuality "1"]
[TimeControl "40/5400+30:1800+30"]

1. d4 {[%emt 0:00:02]} d5 {[%emt 0:00:09]} 2. c4 {[%emt 0:00:11]} c6 {[%emt 0:00:09]} 3. cxd5 {[%emt 0:01:41]} cxd5 {[%emt 0:00:04]} 4. Nc3 {[%emt 0:00:06]} Nf6 {[%emt 0:00:40]} 5. Bf4 {[%emt 0:01:10]} e6 {[%emt 0:01:36]} 6. e3 {[%emt 0:00:50]} Be7 {[%emt 0:03:31]} 7. Bd3 {[%emt 0:01:42]} O-O {[%emt 0:00:24]} 8. Nf3 {[%emt 0:00:28]} a6 {[%emt 0:00:25]} 9. O-O {[%emt 0:01:05]} Nc6 {[%emt 0:00:12]} 10. Rc1 {[%emt 0:02:11]} Bd7 {[%emt 0:06:25]} 11. Re1 {[%emt 0:10:09]} Nh5 {[%emt 0:06:29]} 12. Be5 {[%emt 0:09:03]} f6 {[%emt 0:04:08]} 13. Bf4 {[%emt 0:13:02]} Nxf4 {[%emt 0:01:35]} 14. exf4 {[%emt 0:00:03]} Bd6 {[%emt 0:02:33]} 15. f5 {[%emt 0:05:05]} Re8 {[%emt 0:05:17]} 16. fxe6 {[%emt 0:06:54]} Bxe6 {[%emt 0:00:17]} 17. Qb3 {[%emt 0:03:33]} Kh8 {[%emt 0:02:11]} 18. a3 {[%emt 0:02:31]} Qd7 {[%emt 0:04:39]} 19. Re2 {[%emt 0:06:37]} Bf7 {[%emt 0:02:29]} 20. Rce1 {[%emt 0:01:45]} Rxe2 {[%emt 0:00:05]} 21. Rxe2 {[%emt 0:00:05]} Bc7 {[%emt 0:02:10]} 22. Qc2 {[%emt 0:04:11]} Bh5 {[%emt 0:05:44]} 23. Bf5 {[%emt 0:05:45]} Qd8 {[%emt 0:00:46]} 24. g4 {[%emt 0:01:36]} Bf7 {[%emt 0:02:45]} 25. Bxh7 {[%emt 0:01:39]} Qd6 {[%emt 0:00:06]} 26. Qd3 {[%emt 0:15:25]} Qf4 {[%emt 0:00:07]} 27. h3 {[%emt 0:03:46]} Qh6 {[%emt 0:03:24]} 28. Bf5 {[%emt 0:01:43]} g6 {[%emt 0:05:07]} 29. g5 {[%emt 0:00:40]} Qh7 {[%emt 0:00:47]} 30. Bd7 {[%emt 0:01:26]} f5 {[%emt 0:02:04]} 31. Bxc6 {[%emt 0:00:16]} Qxh3 {[%emt 0:02:12]} 32. Ne5 {[%emt 0:00:24]} Qxd3 {[%emt 0:02:44]} 33. Nxd3 {[%emt 0:00:01]} bxc6 {[%emt 0:00:08]} 34. Re7 {[%emt 0:00:08]} Ra7 {[%emt 0:00:04]} 35. Ne5 {[%emt 0:00:16]} 1-0

[Event "FIDE WYCC Girls U14 2023"]
[Site "Montesilvano"]
[Date "2023.11.23"]
[Round "10.22"]
[White "Zadrapova, Amalie"]
[Black "Sodgerelt Naranbold"]
[Result "0-1"]
[ECO "B90"]
[WhiteElo "1753"]
[BlackElo "1419"]
[Annotator "NA RC"]
[PlyCount "88"]
[EventDate "2023.11.13"]
[EventType "swiss"]
[EventCountry "ITA"]
[SourceTitle "playchess.com"]
[Source "ChessBase"]
[SourceQuality "1"]
[TimeControl "40/5400+30:1800+30"]

1. e4 {[%emt 0:00:02]} c5 {[%emt 0:01:02]} 2. Nf3 {[%emt 0:00:05]} d6 {[%emt 0:00:07]} 3. d4 {[%emt 0:00:06]} cxd4 {[%emt 0:00:03]} 4. Nxd4 {[%emt 0:00:07]} Nf6 {[%emt 0:00:02]} 5. Nc3 {[%emt 0:00:13]} a6 {[%emt 0:00:04]} 6. Be3 {[%emt 0:00:13]} e5 {[%emt 0:01:37]} 7. Nf3 {[%emt 0:00:09]} Qc7 {[%emt 0:00:04]} 8. Qd2 {[%emt 0:03:18]} b5 {[%emt 0:01:41]} 9. a3 {[%emt 0:02:23]} Bb7 {[%emt 0:00:16]} 10. Bd3 {[%emt 0:03:14]} Be7 {[%emt 0:00:19]} 11. Bg5 {[%emt 0:02:23]} Nbd7 {[%emt 0:01:15]} 12. O-O {[%emt 0:01:21]} Nc5 {[%emt 0:02:26]} 13. Rfe1 {[%emt 0:04:29]} h6 {[%emt 0:01:53]} 14. Bxf6 {[%emt 0:01:07]} Bxf6 {[%emt 0:00:08]} 15. Bxb5+ {[%emt 0:08:10]} axb5 {[%emt 0:02:14]} 16. Nxb5 {[%emt 0:00:10]} Qd7 {[%emt 0:04:45]} 17. Nxd6+ {[%emt 0:00:20]} Kf8 {[%emt 0:02:53]} 18. b4 {[%emt 0:06:18]} Ne6 {[%emt 0:02:07]} 19. Nxb7 {[%emt 0:07:40]} Qxb7 {[%emt 0:00:22]} 20. a4 {[%emt 0:05:48]} Rd8 {[%emt 0:01:45]} 21. Qc3 {[%emt 0:01:13]} Nd4 {[%emt 0:01:02]} 22. a5 {[%emt 0:17:05]} Rc8 {[%emt 0:01:33]} 23. a6 {[%emt 0:01:00]} Qa8 {[%emt 0:00:11]} 24. Qd3 {[%emt 0:06:35]} Nxc2 {[%emt 0:00:58]} 25. b5 {[%emt 0:01:52]} Nxe1 {[%emt 0:02:05]} 26. Nxe1 {[%emt 0:00:20]} Rb8 {[%emt 0:02:23]} 27. Nc2 {[%emt 0:07:31]} Kg8 {[%emt 0:03:59]} 28. Nb4 {[%emt 0:02:10]} Kh7 {[%emt 0:00:57]} 29. Nd5 {[%emt 0:02:01]} Bd8 {[%emt 0:01:58]} 30. Qc4 {[%emt 0:06:19]} Bb6 {[%emt 0:01:51]} 31. Nf6+ {[%emt 0:02:57]} Kg6 {[%emt 0:00:57]} 32. Nd7 {[%emt 0:01:35]} Qa7 {[%emt 0:08:59]} 33. Nxe5+ {[%emt 0:02:18]} Kh7 {[%emt 0:00:28]} 34. Nd3 {[%emt 0:05:45]} Rbc8 {[%emt 0:01:13]} 35. Qd5 {[%emt 0:00:31]} Rhd8 {[%emt 0:00:27]} 36. Qb3 {[%emt 0:00:56]} Bd4 {[%emt 0:00:34]} 37. Nb2 {[%emt 0:00:24]} Rc3 {[%emt 0:00:54]} 38. Qb4 {[%emt 0:00:29]} Rc2 {[%emt 0:00:19]} 39. Kh1 {[%emt 0:00:36]} Rxb2 {[%emt 0:00:30]} 40. Qe1 {[%emt 0:00:00]} Rxb5 {[%emt 0:00:00]} 41. Rd1 {[%emt 0:00:54]} Bxf2 {[%emt 0:00:42]} 42. Qe2 {[%emt 0:01:21]} Qe3 {[%emt 0:00:25]} 43. Qxe3 {[%emt 0:00:45]} Rxd1+ {[%emt 0:00:06]} 44. Qe1 {[%emt 0:00:03]} Rxe1# {[%emt 0:00:07]} 0-1

[Event "FIDE WYCC Girls U14 2023"]
[Site "Montesilvano"]
[Date "2023.11.23"]
[Round "10.23"]
[White "Zerarga, Imene"]
[Black "Stefan, Iulia-Cristiana"]
[Result "0-1"]
[ECO "C55"]
[WhiteElo "1514"]
[BlackElo "1748"]
[Annotator "NA RC"]
[PlyCount "84"]
[EventDate "2023.11.13"]
[EventType "swiss"]
[EventCountry "ITA"]
[SourceTitle "playchess.com"]
[Source "ChessBase"]
[SourceQuality "1"]
[TimeControl "40/5400+30:1800+30"]

1. e4 {[%emt 0:00:03]} e5 {[%emt 0:00:04]} 2. Nf3 {[%emt 0:00:06]} Nc6 {[%emt 0:00:04]} 3. Bc4 {[%emt 0:00:05]} Nf6 {[%emt 0:00:07]} 4. d3 {[%emt 0:00:05]} h6 {[%emt 0:00:05]} 5. c3 {[%emt 0:00:26]} d6 {[%emt 0:00:07]} 6. Nbd2 {[%emt 0:00:08]} g6 {[%emt 0:00:12]} 7. O-O {[%emt 0:02:09]} Bg7 {[%emt 0:00:09]} 8. Re1 {[%emt 0:05:29]} O-O {[%emt 0:00:30]} 9. Nf1 {[%emt 0:02:08]} Na5 {[%emt 0:00:55]} 10. Bb5 {[%emt 0:01:07]} a6 {[%emt 0:00:19]} 11. Ba4 {[%emt 0:00:11]} b5 {[%emt 0:00:11]} 12. Bc2 {[%emt 0:00:07]} c5 {[%emt 0:00:46]} 13. d4 {[%emt 0:05:02]} exd4 {[%emt 0:08:49]} 14. cxd4 {[%emt 0:00:08]} Bg4 {[%emt 0:00:43]} 15. d5 {[%emt 0:04:24]} Re8 {[%emt 0:02:40]} 16. h3 {[%emt 0:00:54]} Bxf3 {[%emt 0:00:37]} 17. gxf3 {[%emt 0:02:31]} Qd7 {[%emt 0:10:50]} 18. Kh2 {[%emt 0:00:33]} Nh7 {[%emt 0:05:16]} 19. f4 {[%emt 0:06:30]} Nc4 {[%emt 0:03:30]} 20. Rb1 {[%emt 0:01:21]} Re7 {[%emt 0:06:38]} 21. Ng3 {[%emt 0:03:44]} Rae8 {[%emt 0:05:05]} 22. Rg1 {[%emt 0:01:35]} Kh8 {[%emt 0:08:16]} 23. h4 {[%emt 0:04:16]} Bd4 {[%emt 0:07:10]} 24. Rg2 {[%emt 0:03:23]} Nf6 {[%emt 0:01:57]} 25. f3 {[%emt 0:00:10]} Ne3 {[%emt 0:01:46]} 26. Bxe3 {[%emt 0:00:43]} Bxe3 {[%emt 0:00:01]} 27. f5 {[%emt 0:01:06]} Bf4 {[%emt 0:01:34]} 28. Kh1 {[%emt 0:05:15]} Bxg3 {[%emt 0:07:45]} 29. Rxg3 {[%emt 0:00:06]} gxf5 {[%emt 0:01:53]} 30. Qd2 {[%emt 0:00:20]} Kh7 {[%emt 0:00:36]} 31. exf5 {[%emt 0:09:22]} Re2 {[%emt 0:02:07]} 32. Qc3 {[%emt 0:00:31]} Qe7 {[%emt 0:00:34]} 33. Be4 {[%emt 0:00:48]} b4 {[%emt 0:04:30]} 34. Qd3 {[%emt 0:04:48]} Nxe4 {[%emt 0:00:51]} 35. fxe4 {[%emt 0:04:50]} Qxh4+ {[%emt 0:01:09]} 36. Rh3 {[%emt 0:01:17]} Qxe4+ {[%emt 0:00:56]} 37. Qxe4 {[%emt 0:00:16]} R8xe4 {[%emt 0:00:12]} 38. Rg1 {[%emt 0:01:27]} Rf4 {[%emt 0:03:32]} 39. f6 {[%emt 0:00:59]} Rxf6 {[%emt 0:00:11]} 40. Rhg3 {[%emt 0:00:00]} Rg6 {[%emt 0:00:00]} 41. Rxg6 {[%emt 0:00:43]} fxg6 {[%emt 0:00:18]} 42. Rf1 {[%emt 0:00:07]} Kg7 {[%emt 0:00:07]} 0-1

[Event "FIDE WYCC Girls U14 2023"]
[Site "Montesilvano"]
[Date "2023.11.23"]
[Round "10.24"]
[White "Petergova, Stella"]
[Black "Saparya Ghosh"]
[Result "*"]
[ECO "B22"]
[WhiteElo "1191"]
[BlackElo "1659"]
[Annotator "NA RC"]
[PlyCount "84"]
[EventDate "2023.11.13"]
[EventType "swiss"]
[EventCountry "ITA"]
[SourceTitle "playchess.com"]
[Source "ChessBase"]
[SourceQuality "1"]
[TimeControl "40/5400+30:1800+30"]

1. e4 {[%emt 0:00:02]} c5 {[%emt 0:00:09]} 2. c3 {[%emt 0:00:04]} Nf6 {[%emt 0:00:07]} 3. e5 {[%emt 0:00:03]} Nd5 {[%emt 0:00:07]} 4. d4 {[%emt 0:00:04]} cxd4 {[%emt 0:00:08]} 5. cxd4 {[%emt 0:00:03]} Nc6 {[%emt 0:01:42]} 6. Nf3 {[%emt 0:00:05]} d6 {[%emt 0:00:07]} 7. Bc4 {[%emt 0:00:48]} Nb6 {[%emt 0:00:37]} 8. Bb5 {[%emt 0:01:15]} Bd7 {[%emt 0:00:23]} 9. Nc3 {[%emt 0:04:26]} e6 {[%emt 0:10:46]} 10. O-O {[%emt 0:02:18]} Nb4 {[%emt 0:09:08]} 11. Be2 {[%emt 0:06:30]} Bc6 {[%emt 0:06:26]} 12. a3 {[%emt 0:02:06]} N4d5 {[%emt 0:00:13]} 13. Nxd5 {[%emt 0:01:44]} Nxd5 {[%emt 0:00:17]} 14. Bd3 {[%emt 0:01:35]} Be7 {[%emt 0:02:06]} 15. Qe2 {[%emt 0:00:28]} Qb6 {[%emt 0:03:45]} 16. b4 {[%emt 0:05:40]} a6 {[%emt 0:15:59]} 17. Bd2 {[%emt 0:04:53]} Bb5 {[%emt 0:01:55]} 18. Rac1 {[%emt 0:01:13]} O-O {[%emt 0:02:47]} 19. Rc2 {[%emt 0:02:10]} Rad8 {[%emt 0:01:22]} 20. Bxb5 {[%emt 0:01:38]} axb5 {[%emt 0:01:44]} 21. Qe4 {[%emt 0:01:22]} Qa7 {[%emt 0:20:48]} 22. Bg5 {[%emt 0:04:58]} h6 {[%emt 0:03:15]} 23. Bc1 {[%emt 0:05:05]} dxe5 {[%emt 0:04:43]} 24. dxe5 {[%emt 0:00:45]} Rc8 {[%emt 0:00:15]} 25. Bb2 {[%emt 0:00:46]} Qb8 {[%emt 0:10:29]} 26. Rfc1 {[%emt 0:00:46]} Nb6 {[%emt 0:00:08]} 27. Qe2 {[%emt 0:06:41]} Nc4 {[%emt 0:01:52]} 28. Rb1 {[%emt 0:00:54]} Qa7 {[%emt 0:01:22]} 29. h3 {[%emt 0:01:12]} Qa4 {[%emt 0:00:57]} 30. Nd4 {[%emt 0:02:17]} Rfd8 {[%emt 0:01:09]} 31. Nxb5 {[%emt 0:02:31]} Qxb5 {[%emt 0:00:18]} 32. Rbc1 {[%emt 0:00:06]} Bg5 {[%emt 0:00:17]} 33. Rxc4 {[%emt 0:06:23]} Bxc1 {[%emt 0:00:20]} 34. Rxc8 {[%emt 0:00:20]} Qxe2 {[%emt 0:00:08]} 35. Rxd8+ {[%emt 0:00:08]} Kh7 {[%emt 0:00:02]} 36. Bxc1 {[%emt 0:00:20]} Qe1+ {[%emt 0:00:03]} 37. Kh2 {[%emt 0:00:11]} Qxc1 {[%emt 0:00:03]} 38. Rd7 {[%emt 0:00:11]} Qf4+ {[%emt 0:00:52]} 39. Kg1 {[%emt 0:00:25]} b5 {[%emt 0:00:03]} 40. g3 {[%emt 0:00:00]} Qxe5 {[%emt 0:00:00]} 41. Rxf7 {[%emt 0:01:56]} Qa1+ {[%emt 0:00:09]} 42. Kh2 {[%emt 0:00:38]} Qxa3 {[%emt 0:00:03]} *

[Event "FIDE WYCC Girls U14 2023"]
[Site "Montesilvano"]
[Date "2023.11.23"]
[Round "10.25"]
[White "Stoll, Lucia"]
[Black "Rice, Leah"]
[Result "1/2-1/2"]
[ECO "B12"]
[WhiteElo "1887"]
[BlackElo "1499"]
[Annotator "NA RC"]
[PlyCount "102"]
[EventDate "2023.11.13"]
[EventType "swiss"]
[EventCountry "ITA"]
[SourceTitle "playchess.com"]
[Source "ChessBase"]
[SourceQuality "1"]
[TimeControl "40/5400+30:1800+30"]

1. e4 {[%emt 0:00:01]} c6 {[%emt 0:00:08]} 2. d4 {[%emt 0:00:10]} d5 {[%emt 0:00:26]} 3. e5 {[%emt 0:00:04]} c5 {[%emt 0:00:29]} 4. dxc5 {[%emt 0:00:05]} e6 {[%emt 0:00:30]} 5. a3 {[%emt 0:00:04]} Bxc5 {[%emt 0:00:15]} 6. Nf3 {[%emt 0:00:16]} Nd7 {[%emt 0:01:14]} 7. b4 {[%emt 0:00:33]} Be7 {[%emt 0:00:13]} 8. Bb2 {[%emt 0:00:38]} f6 {[%emt 0:00:19]} 9. Bd3 {[%emt 0:01:58]} Nh6 {[%emt 0:01:51]} 10. O-O {[%emt 0:03:05]} Nf7 {[%emt 0:02:09]} 11. Nd4 {[%emt 0:14:37]} Qb6 {[%emt 0:11:04]} 12. exf6 {[%emt 0:12:45]} Bxf6 {[%emt 0:01:53]} 13. Qg4 {[%emt 0:03:32]} Nde5 {[%emt 0:02:19]} 14. Bb5+ {[%emt 0:00:53]} Qxb5 {[%emt 0:02:04]} 15. Nxb5 {[%emt 0:01:16]} Nxg4 {[%emt 0:00:08]} 16. Bxf6 {[%emt 0:00:13]} Nxf6 {[%emt 0:00:11]} 17. Nc7+ {[%emt 0:00:03]} Kd7 {[%emt 0:00:32]} 18. Nxa8 {[%emt 0:00:11]} b6 {[%emt 0:00:16]} 19. Re1 {[%emt 0:10:46]} Re8 {[%emt 0:07:04]} 20. Nc3 {[%emt 0:05:39]} Bb7 {[%emt 0:00:39]} 21. Nxb6+ {[%emt 0:00:18]} axb6 {[%emt 0:00:08]} 22. Na4 {[%emt 0:01:31]} Bc6 {[%emt 0:02:08]} 23. Nb2 {[%emt 0:02:14]} Rc8 {[%emt 0:01:45]} 24. c4 {[%emt 0:01:46]} Nd6 {[%emt 0:03:54]} 25. Rad1 {[%emt 0:05:18]} Ra8 {[%emt 0:03:48]} 26. Rd3 {[%emt 0:05:41]} Ke7 {[%emt 0:02:11]} 27. cxd5 {[%emt 0:05:21]} Nxd5 {[%emt 0:04:28]} 28. f3 {[%emt 0:03:22]} Kd7 {[%emt 0:02:44]} 29. Rb3 {[%emt 0:03:16]} Bb5 {[%emt 0:01:46]} 30. Rc1 {[%emt 0:01:40]} Nf5 {[%emt 0:03:01]} 31. Rd1 {[%emt 0:04:22]} Kd6 {[%emt 0:01:45]} 32. Kf2 {[%emt 0:02:13]} e5 {[%emt 0:08:54]} 33. a4 {[%emt 0:05:35]} Nd4 {[%emt 0:01:58]} 34. Rxd4 {[%emt 0:01:06]} exd4 {[%emt 0:00:06]} 35. axb5 {[%emt 0:00:07]} Rc8 {[%emt 0:00:18]} 36. Nd3 {[%emt 0:03:20]} Rc2+ {[%emt 0:00:30]} 37. Kg3 {[%emt 0:00:32]} Ne3 {[%emt 0:02:08]} 38. Rb2 {[%emt 0:02:29]} Rxb2 {[%emt 0:04:15]} 39. Nxb2 {[%emt 0:00:02]} Kd5 {[%emt 0:00:24]} 40. Kf2 {[%emt 0:00:00]} Nc2 {[%emt 0:00:00]} 41. Ke2 {[%emt 0:07:34]} Nxb4 {[%emt 0:02:37]} 42. Na4 {[%emt 0:00:08]} Kc4 {[%emt 0:00:51]} 43. Nxb6+ {[%emt 0:01:00]} Kxb5 {[%emt 0:00:49]} 44. Nd7 {[%emt 0:01:05]} Kc4 {[%emt 0:00:10]} 45. Kd2 {[%emt 0:00:34]} d3 {[%emt 0:00:42]} 46. g3 {[%emt 0:04:02]} Nc6 {[%emt 0:00:31]} 47. f4 {[%emt 0:01:46]} Kd4 {[%emt 0:02:50]} 48. Ne5 {[%emt 0:02:07]} Nxe5 {[%emt 0:02:23]} 49. fxe5 {[%emt 0:00:01]} Kxe5 {[%emt 0:00:10]} 50. Kxd3 {[%emt 0:00:02]} Kf5 {[%emt 0:00:34]} 51. h3 Ke5 1/2-1/2